[Event "WYCC 2018 O14"]
[Site "Halkidiki"]
[Date "2018.10.23"]
[Round "5"]
[White "Egorov, Mikhail"]
[Black "Ozenir, Ekin Baris"]
[Result "1/2-1/2"]
[ECO "A05"]
[WhiteElo "2006"]
[BlackElo "2293"]
[Annotator "NA"]
[PlyCount "128"]
[EventDate "2018.10.20"]
[EventType "swiss"]
[EventCountry "GRE"]
[SourceTitle "playchess.com"]
[Source "ChessBase"]
[SourceQuality "1"]
[TimeControl "40/5400+30:1800+30"]

1. Nf3 {[%emt 0:00:00]} Nf6 {[%emt 0:00:00]} 2. c4 {[%emt 0:00:00]} b6 {[%emt 0:00:07]} 3. g3 {[%emt 0:00:00]} Bb7 {[%emt 0:00:30]} 4. Bg2 {[%emt 0:00:02]} g6 {[%emt 0:00:35]} 5. Nc3 {[%emt 0:00:06] A15: English Opening: 1...Nf6} (5. d4 Bg7 6. O-O O-O 7. Qc2 a5 8. Nc3 Na6 9. a3 e6 10. e4 d6 11. Re1 Qe7 12. Rb1 Nb8 13. b4 axb4 14. axb4 Nbd7 15. Bd2 {1-0 (61) Oparin,G (2624)-Dubov,D (2703) Sochi 2018}) 5... e6 {[%emt 0:01:52]} 6. O-O {[%emt 0:00:21]} Bg7 {[%emt 0:00:16]} 7. Re1 {[%emt 0:02:23]} d5 {[%emt 0:01:14]} 8. cxd5 {[%emt 0:00:21]} exd5 {[%emt 0:00:57]} 9. d4 {[%emt 0:00:26]} O-O {[%emt 0:00:20]} 10. b3 {[%emt 0:03:16]} Ne4 {[%emt 0:05:07]} 11. Bb2 {[%emt 0:01:15]} Nd7 $146 {[%emt 0:03:05]} ({Predecessor:} 11... Nxc3 12. Bxc3 Nd7 13. Rc1 Rc8 14. b4 Qe7 {½-½ (29) Cosma,E (2324)-Daulyte,D (2427) Calimanesti Caciulata 2016}) 12. Rc1 {[%emt 0:03:44]} f5 {[%emt 0:06:09]} 13. e3 {[%emt 0:08:30]} c6 {[%emt 0:07:01]} 14. Ne2 {[%emt 0:07:58]} g5 {[%emt 0:13:38]} 15. Rc2 {[%emt 0:02:28]} Qe7 {[%emt 0:04:13]} 16. Nc1 {[%emt 0:02:26]} g4 {[%emt 0:06:50]} 17. Nh4 {[%emt 0:05:47]} Bh6 {[%emt 0:10:12]} 18. h3 {[%emt 0:09:33]} Bg5 {[%emt 0:05:56]} 19. Bxe4 {[%emt 0:02:17]} Qxe4 {[%emt 0:02:18]} 20. Ng2 {[%emt 0:01:35]} Rae8 {[%emt 0:06:31]} 21. h4 {[%emt 0:00:57]} Bh6 {[%emt 0:00:38]} 22. Nd3 {[%emt 0:03:49]} c5 {[%emt 0:11:22]} 23. Ndf4 {[%emt 0:04:33]} c4 {[%emt 0:02:47]} 24. b4 {[%emt 0:02:09]} b5 {[%emt 0:04:20]} 25. Bc3 {[%emt 0:01:18]} Nb6 {[%emt 0:00:42]} 26. Qd2 {[%emt 0:01:24]} Na4 {[%emt 0:00:35]} 27. a3 {[%emt 0:01:21]} Bc6 {[%emt 0:00:57]} 28. Ra2 {[%emt 0:04:00]} Rf7 {[%emt 0:00:45]} 29. Rc1 {[%emt 0:02:56]} Bf8 {[%emt 0:00:37]} 30. Qe1 {[%emt 0:03:06]} Bd6 {[%emt 0:00:32]} 31. Bd2 {[%emt 0:02:15]} Rb8 {[%emt 0:02:23]} 32. Qd1 {[%emt 0:03:36]} Rff8 {[%emt 0:01:17]} 33. Ne2 {[%emt 0:03:15]} Rb6 $17 {[%emt 0:01:05]} 34. Nc3 {[%emt 0:04:09]} Nxc3 {[%emt 0:00:07]} 35. Bxc3 {[%emt 0:00:05]} Ra6 {[%emt 0:00:17]} 36. Qd2 {[%emt 0:00:38]} Be8 {[%emt 0:01:08]} 37. Nf4 {[%emt 0:04:29]} Bf7 {[%emt 0:00:50]} 38. Qc2 {[%emt 0:02:21]} Qxc2 {[%emt 0:00:45]} 39. Rcxc2 {[%emt 0:00:15]} Ra4 {[%emt 0:00:18]} 40. Rcb2 {[%emt 0:00:00]} Rb8 {[%emt 0:00:00]} 41. Kf1 {[%emt 0:03:03]} Kf8 {[%emt 0:14:28]} 42. Ke2 {[%emt 0:00:18]} Ke8 {[%emt 0:00:24]} 43. Kd2 {[%emt 0:00:19]} Kd7 {[%emt 0:00:47]} 44. Kc1 {[%emt 0:00:09]} Kc6 {[%emt 0:00:46]} 45. Kb1 {[%emt 0:00:24]} a5 {[%emt 0:03:22]} 46. Ka1 {[%emt 0:02:29]} Ra8 {[%emt 0:02:33]} 47. Kb1 {[%emt 0:00:31]} Ra7 {[%emt 0:01:30]} 48. Bd2 {[%emt 0:13:15]} Re7 {[%emt 0:02:43]} 49. Bc3 {[%emt 0:00:23]} Re4 {[%emt 0:01:55]} 50. Kc1 {[%emt 0:01:03]} Re8 {[%emt 0:00:53]} 51. Kb1 {[%emt 0:00:31]} Ra8 {[%emt 0:00:10]} 52. Bd2 {[%emt 0:00:54]} Ra6 {[%emt 0:00:43]} 53. Bc3 {[%emt 0:00:28]} axb4 {[%emt 0:01:42]} 54. axb4 {[%emt 0:00:08]} Ra3 55. Rxa3 {[%emt 0:00:35]} Rxa3 {[%emt 0:00:19]} 56. Kc2 {[%emt 0:00:16]} Kb6 {[%emt 0:01:49]} 57. Rb1 {[%emt 0:00:25]} Ra2+ {[%emt 0:00:46]} 58. Rb2 {[%emt 0:00:11]} Ra4 {[%emt 0:00:11]} 59. Rb1 {[%emt 0:00:15]} Ra7 {[%emt 0:00:12]} 60. Rb2 {[%emt 0:00:13]} Ra1 {[%emt 0:00:45]} 61. Rb1 {[%emt 0:00:09]} Ra8 {[%emt 0:00:05]} 62. Rb2 {[%emt 0:00:09]} Re8 {[%emt 0:00:24]} 63. Kd2 {[%emt 0:00:14]} Ra8 {[%emt 0:00:20]} 64. Kc2 {[%emt 0:00:06]} Ra4 {[%emt 0:01:07]} 1/2-1/2

[Event "WYCC 2018 O14"]
[Site "Halkidiki"]
[Date "2018.10.23"]
[Round "5"]
[White "Nguyen, Huynh Minh Thien"]
[Black "Krastev, Alexander"]
[Result "0-1"]
[ECO "A04"]
[WhiteElo "1996"]
[BlackElo "2298"]
[Annotator "NA"]
[PlyCount "92"]
[EventDate "2018.10.20"]
[EventType "swiss"]
[EventCountry "GRE"]
[SourceTitle "playchess.com"]
[Source "ChessBase"]
[SourceQuality "1"]
[TimeControl "40/5400+30:1800+30"]

1. Nf3 {[%emt 0:00:00]} c5 {[%emt 0:00:00]} 2. g3 {[%emt 0:00:11]} g6 {[%emt 0:00:00]} 3. Bg2 {[%emt 0:01:39]} Bg7 {[%emt 0:00:03]} 4. d4 {[%emt 0:00:31]} cxd4 {[%emt 0:00:22]} 5. Nxd4 {[%emt 0:00:05]} Nc6 {[%emt 0:00:11]} 6. Nxc6 {[%emt 0:00:40]} bxc6 {[%emt 0:00:38]} 7. O-O {[%emt 0:00:22]} Nf6 {[%emt 0:01:06]} 8. Nc3 {[%emt 0:04:21]} O-O {[%emt 0:03:50]} 9. e4 {[%emt 0:00:19]} Qc7 {[%emt 0:09:43]} 10. Re1 {[%emt 0:03:12]} d6 {[%emt 0:05:37]} 11. h3 {[%emt 0:00:27]} Rb8 {[%emt 0:01:18]} 12. Rb1 {[%emt 0:00:35]} Nd7 {[%emt 0:01:31] B70: Sicilian Dragon: 6 g3 and 6 Be2 (without a later Be3)} 13. Ne2 $146 {[%emt 0:02:16]} ({Predecessor:} 13. Be3 Ne5 14. Qe2 Be6 15. b3 Nc4 16. Nd1 Qa5 17. c3 Nxe3 18. Qxe3 Qxa2 19. Nb2 Rxb3 20. Qc1 Rfb8 {0-1 (20) Bello Bello,P-Granero Roca,A (2388) Cala Galdana 1999}) 13... Nc5 {[%emt 0:03:13]} 14. b3 {[%emt 0:03:38]} Ba6 {[%emt 0:04:27]} 15. Be3 {[%emt 0:06:39]} Ne6 {[%emt 0:02:29]} 16. Nd4 {[%emt 0:01:56]} Nc5 {[%emt 0:06:29]} 17. Ne2 {[%emt 0:02:48]} Rfd8 {[%emt 0:04:56]} 18. Bd4 {[%emt 0:04:01]} e5 {[%emt 0:04:54]} 19. Be3 {[%emt 0:01:28]} Bc8 {[%emt 0:03:16]} 20. Qc1 {[%emt 0:09:02]} Ne6 {[%emt 0:02:54]} 21. Rd1 {[%emt 0:01:55]} a5 {[%emt 0:01:40]} 22. c3 {[%emt 0:04:25]} Ba6 {[%emt 0:01:51]} 23. Qc2 {[%emt 0:00:50]} Bb7 {[%emt 0:03:24]} 24. Rd2 {[%emt 0:01:13]} Rd7 {[%emt 0:02:34]} 25. Rbd1 {[%emt 0:00:41]} Rbd8 {[%emt 0:00:49]} 26. c4 {[%emt 0:13:55]} c5 {[%emt 0:02:10]} 27. Nc3 {[%emt 0:00:21]} Nd4 {[%emt 0:00:39]} 28. Bxd4 {[%emt 0:00:04]} exd4 $15 {[%emt 0:00:41]} 29. Nd5 {[%emt 0:00:27]} Bxd5 {[%emt 0:00:16]} 30. cxd5 {[%emt 0:03:02]} a4 {[%emt 0:03:31]} 31. b4 {[%emt 0:07:44]} c4 {[%emt 0:01:09]} 32. Qxa4 {[%emt 0:00:15]} d3 {[%emt 0:01:05]} 33. Rc1 {[%emt 0:00:42]} Bh6 {[%emt 0:02:25]} 34. f4 {[%emt 0:00:06]} Qb6+ {[%emt 0:00:14]} 35. Kh2 {[%emt 0:00:52]} Rc7 {[%emt 0:01:15]} 36. Rdd1 {[%emt 0:08:17]} g5 {[%emt 0:02:25]} 37. b5 {[%emt 0:01:53]} Rdc8 {[%emt 0:00:39]} 38. fxg5 {[%emt 0:01:07]} Bxg5 {[%emt 0:00:15]} 39. Rc3 {[%emt 0:00:27]} Bf6 {[%emt 0:00:39]} 40. Rcc1 {[%emt 0:00:00]} Bb2 {[%emt 0:00:00]} 41. Rb1 {[%emt 0:03:12]} Be5 {[%emt 0:08:58]} 42. Kh1 {[%emt 0:09:24]} Ra7 {[%emt 0:01:29]} 43. Qb4 {[%emt 0:00:35]} Rxa2 {[%emt 0:00:15]} 44. Rf1 {[%emt 0:00:28]} Qe3 {[%emt 0:04:59]} 45. Rf3 {[%emt 0:00:53]} Qe2 {[%emt 0:00:29]} 46. Rg1 {[%emt 0:00:06]} Bd4 {[%emt 0:01:17]} 0-1

[Event "WYCC 2018 O14"]
[Site "Halkidiki"]
[Date "2018.10.23"]
[Round "5"]
[White "Chatzieleftheriou, Andreas"]
[Black "Van Dael, Siem"]
[Result "1-0"]
[ECO "B76"]
[WhiteElo "1984"]
[BlackElo "2202"]
[Annotator "NA"]
[PlyCount "73"]
[EventDate "2018.10.20"]
[EventType "swiss"]
[EventCountry "GRE"]
[SourceTitle "playchess.com"]
[Source "ChessBase"]
[SourceQuality "1"]
[TimeControl "40/5400+30:1800+30"]

1. e4 {[%emt 0:00:00]} c5 {[%emt 0:00:00]} 2. Nf3 {[%emt 0:00:00]} d6 {[%emt 0:00:00]} 3. d4 {[%emt 0:00:00]} cxd4 {[%emt 0:00:00]} 4. Nxd4 {[%emt 0:00:00]} Nf6 {[%emt 0:00:00]} 5. Nc3 {[%emt 0:00:00]} g6 {[%emt 0:00:04]} 6. Be3 {[%emt 0:00:01]} Bg7 {[%emt 0:00:05]} 7. f3 {[%emt 0:00:16]} O-O {[%emt 0:00:06]} 8. Qd2 {[%emt 0:00:18]} Nc6 {[%emt 0:00:04]} 9. g4 {[%emt 0:00:05]} Nxd4 {[%emt 0:00:08]} 10. Bxd4 {[%emt 0:00:04]} Be6 {[%emt 0:00:06]} 11. Nd5 {[%emt 0:01:15]} Bxd5 {[%emt 0:18:48]} 12. exd5 {[%emt 0:02:56]} Qd7 {[%emt 0:02:25]} 13. O-O-O {[%emt 0:20:09]} Rfc8 {[%emt 0:00:43]} 14. Kb1 {[%emt 0:00:26]} Qa4 {[%emt 0:00:51]} 15. b3 $14 {[%emt 0:11:03]} Qa3 {[%emt 0:01:05]} 16. h4 {[%emt 0:05:17]} a5 {[%emt 0:35:15]} 17. c4 {[%emt 0:07:28]} a4 {[%emt 0:03:23]} 18. Bb2 {[%emt 0:05:05]} Qc5 {[%emt 0:00:06]} 19. b4 {[%emt 0:00:23]} Qc7 {[%emt 0:00:24]} 20. a3 {[%emt 0:01:28]} b5 {[%emt 0:07:02]} 21. Rc1 {[%emt 0:11:03]} bxc4 {[%emt 0:10:53]} 22. Bxc4 {[%emt 0:07:20]} Qd7 {[%emt 0:00:17]} 23. h5 {[%emt 0:01:41]} Rc7 {[%emt 0:02:00]} 24. hxg6 {[%emt 0:07:22]} hxg6 {[%emt 0:00:16]} 25. Bd3 {[%emt 0:02:13]} Rac8 {[%emt 0:01:57]} 26. Rxc7 {[%emt 0:00:13]} Rxc7 {[%emt 0:00:09]} 27. b5 {[%emt 0:02:45]} Rc5 {[%emt 0:01:20]} 28. Be2 {[%emt 0:07:50]} Rxd5 {[%emt 0:01:22]} 29. Qb4 {[%emt 0:00:47]} Rc5 {[%emt 0:01:08]} 30. b6 {[%emt 0:00:19]} Qb7 {[%emt 0:00:42]} 31. Qxa4 {[%emt 0:03:26]} Qxb6 {[%emt 0:00:19]} 32. Qa8+ {[%emt 0:00:18]} Bf8 {[%emt 0:00:16]} 33. Rh8+ {[%emt 0:00:24]} Kxh8 {[%emt 0:00:15]} 34. Qxf8+ {[%emt 0:00:01]} Kh7 {[%emt 0:00:07]} 35. Qxf7+ {[%emt 0:00:45]} Kh6 {[%emt 0:00:13]} 36. Qxe7 {[%emt 0:00:57]} Re5 {[%emt 0:02:43]} 37. Qxf6 {[%emt 0:00:27]} 1-0

[Event "WYCC 2018 O14"]
[Site "Halkidiki"]
[Date "2018.10.23"]
[Round "5"]
[White "Unneland, Mathias"]
[Black "Marn, Jan"]
[Result "1/2-1/2"]
[ECO "D35"]
[WhiteElo "1884"]
[BlackElo "2125"]
[Annotator "NA"]
[PlyCount "74"]
[EventDate "2018.10.20"]
[EventType "swiss"]
[EventCountry "GRE"]
[SourceTitle "playchess.com"]
[Source "ChessBase"]
[SourceQuality "1"]
[TimeControl "40/5400+30:1800+30"]

1. d4 {[%emt 0:00:00]} Nf6 {[%emt 0:00:00]} 2. c4 {[%emt 0:00:00]} e6 {[%emt 0:00:00]} 3. Nc3 {[%emt 0:00:00]} d5 {[%emt 0:00:15]} 4. cxd5 {[%emt 0:00:00]} exd5 {[%emt 0:00:23]} 5. Bg5 {[%emt 0:00:22]} Be7 {[%emt 0:02:07]} 6. e3 {[%emt 0:00:58]} c6 {[%emt 0:00:13]} 7. Bd3 {[%emt 0:00:53]} Ne4 {[%emt 0:02:01]} 8. Bxe7 {[%emt 0:02:15]} Qxe7 {[%emt 0:00:03]} 9. Nge2 {[%emt 0:02:43]} f5 {[%emt 0:02:01]} 10. O-O {[%emt 0:03:07]} O-O {[%emt 0:00:23]} 11. Re1 {[%emt 0:01:05]} Nd7 {[%emt 0:01:33]} 12. f3 {[%emt 0:02:38]} Nd6 {[%emt 0:02:34]} 13. Ng3 {[%emt 0:00:46]} Nf6 {[%emt 0:13:07]} 14. e4 {[%emt 0:04:51]} dxe4 {[%emt 0:02:20]} 15. fxe4 $11 {[%emt 0:01:51]} f4 {[%emt 0:00:15]} 16. Nh5 {[%emt 0:05:56]} Ng4 {[%emt 0:03:39]} 17. h3 {[%emt 0:03:58]} Qg5 {[%emt 0:14:56]} 18. hxg4 {[%emt 0:05:58]} Bxg4 {[%emt 0:00:09]} 19. Qb3+ {[%emt 0:05:32]} Kh8 {[%emt 0:00:40]} 20. Nxf4 {[%emt 0:02:04]} Qxf4 {[%emt 0:06:29]} 21. Be2 {[%emt 0:04:16]} Qf2+ {[%emt 0:15:06]} 22. Kh1 {[%emt 0:01:22]} Bxe2 {[%emt 0:02:59]} 23. Rxe2 {[%emt 0:01:00]} Qxd4 {[%emt 0:00:27]} 24. Rd1 {[%emt 0:02:56]} Qe5 {[%emt 0:00:51]} 25. Qb4 {[%emt 0:05:26]} Rf6 {[%emt 0:01:46]} 26. Qd4 {[%emt 0:05:27]} Qh5+ {[%emt 0:05:00]} 27. Kg1 {[%emt 0:00:15]} Raf8 {[%emt 0:00:17]} 28. Re3 {[%emt 0:01:27]} Nb5 {[%emt 0:05:40]} 29. Nxb5 {[%emt 0:02:12]} Qxb5 {[%emt 0:00:06]} 30. e5 {[%emt 0:02:51]} c5 {[%emt 0:02:21]} 31. Qg4 {[%emt 0:01:12]} Rf1+ {[%emt 0:02:12]} 32. Rxf1 {[%emt 0:01:24]} Qxf1+ {[%emt 0:06:08]} 33. Kh2 {[%emt 0:00:07]} Qc1 {[%emt 0:02:14]} 34. Rf3 {[%emt 0:01:40]} Qh6+ {[%emt 0:01:00]} 35. Kg1 {[%emt 0:01:19]} Qc1+ {[%emt 0:00:19]} 36. Kh2 {[%emt 0:00:23]} Qh6+ {[%emt 0:00:09]} 37. Kg1 {[%emt 0:00:31]} Qc1+ {[%emt 0:01:55]} 1/2-1/2

[Event "WYCC 2018 O14"]
[Site "Halkidiki"]
[Date "2018.10.23"]
[Round "5"]
[White "Manucharyan, Gagik"]
[Black "Karadzhov, Ivan"]
[Result "1-0"]
[ECO "D94"]
[WhiteElo "1827"]
[BlackElo "2040"]
[Annotator "NA"]
[PlyCount "111"]
[EventDate "2018.10.20"]
[EventType "swiss"]
[EventCountry "GRE"]
[SourceTitle "playchess.com"]
[Source "ChessBase"]
[SourceQuality "1"]
[TimeControl "40/5400+30:1800+30"]

1. d4 {[%emt 0:00:00]} d5 {[%emt 0:00:00]} 2. c4 {[%emt 0:00:00]} c6 {[%emt 0:00:00]} 3. Nf3 {[%emt 0:00:08]} Nf6 {[%emt 0:00:32]} 4. e3 {[%emt 0:00:23]} g6 {[%emt 0:08:08]} 5. Nc3 {[%emt 0:02:31]} Bg7 {[%emt 0:02:09]} 6. Bd3 {[%emt 0:03:01]} O-O {[%emt 0:01:17]} 7. O-O {[%emt 0:01:30]} Bg4 {[%emt 0:14:21]} 8. h3 {[%emt 0:02:07]} Bxf3 {[%emt 0:00:29]} 9. Qxf3 {[%emt 0:00:04]} dxc4 {[%emt 0:03:51]} 10. Bxc4 {[%emt 0:00:09]} Nbd7 {[%emt 0:01:06]} 11. Rd1 $14 {[%emt 0:02:08] LiveBook: 357 Games} e5 {[%emt 0:14:03]} 12. d5 {[%emt 0:13:41]} cxd5 {[%emt 0:03:13]} 13. Bxd5 {[%emt 0:01:07]} Qe7 {[%emt 0:06:01]} 14. Bxb7 {[%emt 0:11:41]} Rab8 {[%emt 0:01:33]} 15. Bd5 {[%emt 0:03:47]} Nc5 {[%emt 0:10:58]} 16. e4 {[%emt 0:03:22]} Nxd5 {[%emt 0:07:09]} 17. Nxd5 {[%emt 0:01:03]} Qh4 {[%emt 0:00:41]} 18. Be3 {[%emt 0:13:21]} Ne6 {[%emt 0:03:43]} 19. b3 {[%emt 0:02:22]} Nd4 {[%emt 0:00:44]} 20. Qg4 {[%emt 0:00:36]} Qxg4 {[%emt 0:01:33]} 21. hxg4 {[%emt 0:00:13]} Rb7 {[%emt 0:03:46]} 22. Kf1 {[%emt 0:07:53]} f5 {[%emt 0:03:27]} 23. gxf5 {[%emt 0:07:22]} gxf5 {[%emt 0:00:09]} 24. exf5 {[%emt 0:00:19]} Rxf5 {[%emt 0:04:23]} 25. Rac1 {[%emt 0:00:50]} h5 {[%emt 0:01:59]} 26. Nc3 {[%emt 0:03:36]} Rf8 {[%emt 0:04:36]} 27. Ne4 {[%emt 0:00:37]} Rb6 {[%emt 0:01:52]} 28. Rc7 {[%emt 0:01:52]} Ra6 {[%emt 0:00:53]} 29. a4 {[%emt 0:01:44]} Rf7 {[%emt 0:01:04]} 30. Rc8+ {[%emt 0:04:38]} Rf8 {[%emt 0:00:14]} 31. Rxf8+ {[%emt 0:02:44]} Kxf8 {[%emt 0:00:08]} 32. Nc5 {[%emt 0:00:39]} Rd6 {[%emt 0:01:03]} 33. b4 {[%emt 0:01:02]} Kf7 {[%emt 0:00:38]} 34. b5 {[%emt 0:01:07]} Nf5 {[%emt 0:00:45]} 35. Rxd6 {[%emt 0:02:04]} Nxd6 {[%emt 0:00:04]} 36. Na6 {[%emt 0:02:10]} Nc8 {[%emt 0:00:18]} 37. Nb4 {[%emt 0:00:28]} Ke6 {[%emt 0:01:05]} 38. Bxa7 {[%emt 0:02:19]} Bf8 {[%emt 0:00:33]} 39. Nc6 {[%emt 0:00:05]} Kd6 {[%emt 0:00:28]} 40. Be3 {[%emt 0:00:00]} e4 {[%emt 0:00:00]} 41. a5 {[%emt 0:04:40]} Kc7 {[%emt 0:01:45]} 42. a6 {[%emt 0:03:52]} Bd6 {[%emt 0:05:33]} 43. a7 {[%emt 0:01:02]} Kb7 {[%emt 0:00:51]} 44. Nd8+ {[%emt 0:00:06]} Ka8 {[%emt 0:00:22]} 45. b6 {[%emt 0:00:03]} Nxb6 {[%emt 0:00:50]} 46. Bxb6 {[%emt 0:00:07]} Be5 {[%emt 0:00:29]} 47. Ne6 {[%emt 0:00:46]} Bd6 {[%emt 0:00:23]} 48. Nc7+ {[%emt 0:00:17]} Bxc7 {[%emt 0:00:05]} 49. Bxc7 {[%emt 0:00:03]} Kxa7 {[%emt 0:00:04]} 50. Ke2 {[%emt 0:00:04]} Kb7 {[%emt 0:00:15]} 51. Be5 {[%emt 0:00:29]} Kc6 {[%emt 0:00:05]} 52. Ke3 {[%emt 0:00:03]} Kd5 {[%emt 0:00:05]} 53. Bd4 {[%emt 0:00:05]} h4 {[%emt 0:00:09]} 54. Bf6 {[%emt 0:00:03]} Ke6 {[%emt 0:00:05]} 55. Bxh4 {[%emt 0:00:05]} Kf5 {[%emt 0:00:08]} 56. Bg3 {[%emt 0:00:09]} 1-0

[Event "WYCC 2018 O14"]
[Site "Halkidiki"]
[Date "2018.10.23"]
[Round "5"]
[White "Vujovic, Savo"]
[Black "Kasioumis, Vasilios"]
[Result "1-0"]
[ECO "B48"]
[WhiteElo "1781"]
[BlackElo "2038"]
[Annotator "NA"]
[PlyCount "81"]
[EventDate "2018.10.20"]
[EventType "swiss"]
[EventCountry "GRE"]
[SourceTitle "playchess.com"]
[Source "ChessBase"]
[SourceQuality "1"]
[TimeControl "40/5400+30:1800+30"]

1. e4 {[%emt 0:00:00]} c5 {[%emt 0:00:00]} 2. Nf3 {[%emt 0:00:00]} e6 {[%emt 0:00:00]} 3. d4 {[%emt 0:00:00]} cxd4 {[%emt 0:00:00]} 4. Nxd4 {[%emt 0:00:00]} Nc6 {[%emt 0:00:00]} 5. Nc3 {[%emt 0:00:00]} Qc7 {[%emt 0:00:00]} 6. Be3 {[%emt 0:00:00]} a6 {[%emt 0:00:02]} 7. Qf3 {[%emt 0:00:00]} Nf6 {[%emt 0:00:33]} 8. O-O-O {[%emt 0:00:06]} d6 {[%emt 0:00:42]} 9. Qg3 {[%emt 0:00:55]} Nxd4 {[%emt 0:00:49]} 10. Bxd4 {[%emt 0:00:15]} e5 {[%emt 0:00:07]} 11. Be3 {[%emt 0:00:12]} b5 {[%emt 0:04:43]} 12. f4 {[%emt 0:00:27]} b4 {[%emt 0:06:49]} 13. Nd5 {[%emt 0:00:24]} Nxd5 {[%emt 0:00:59]} 14. exd5 {[%emt 0:02:34]} Bf5 {[%emt 0:11:27]} 15. Bd3 {[%emt 0:03:19]} e4 {[%emt 0:05:20]} 16. Be2 {[%emt 0:00:19]} Rc8 {[%emt 0:07:09]} 17. Rd2 {[%emt 0:00:25]} Qa5 {[%emt 0:20:39]} 18. Kb1 {[%emt 0:02:54]} h5 {[%emt 0:00:46]} 19. Qf2 {[%emt 0:26:48]} Be7 {[%emt 0:07:09]} 20. Bb6 {[%emt 0:11:35]} Qa4 {[%emt 0:00:09]} 21. b3 {[%emt 0:01:43]} Qa3 {[%emt 0:00:08]} 22. Bd4 {[%emt 0:01:06]} Rc3 {[%emt 0:03:19]} 23. Bc4 {[%emt 0:10:07]} e3 {[%emt 0:07:46]} 24. Bxe3 {[%emt 0:03:48]} Rxc4 {[%emt 0:02:23]} 25. bxc4 {[%emt 0:00:20]} b3 {[%emt 0:00:13]} 26. Bd4 {[%emt 0:01:18]} bxc2+ {[%emt 0:11:24]} 27. Rxc2 {[%emt 0:00:08]} O-O {[%emt 0:00:06]} 28. Ka1 {[%emt 0:01:02]} Bxc2 {[%emt 0:02:19]} 29. Qxc2 {[%emt 0:02:04]} Rc8 {[%emt 0:01:40]} 30. Rc1 {[%emt 0:03:11]} f6 {[%emt 0:00:17]} 31. Bb2 {[%emt 0:02:03]} Qe3 {[%emt 0:02:52]} 32. Qf5 {[%emt 0:03:34]} Rc7 {[%emt 0:00:03]} 33. Qxh5 {[%emt 0:02:24]} Qxf4 {[%emt 0:00:05]} 34. Qe8+ {[%emt 0:02:19]} Bf8 {[%emt 0:00:52]} 35. Qe6+ {[%emt 0:00:13]} Kh8 {[%emt 0:00:28]} 36. Rc3 {[%emt 0:00:38]} g5 {[%emt 0:00:54]} 37. Rh3+ {[%emt 0:00:08]} Kg7 {[%emt 0:00:32]} 38. Rf3 {[%emt 0:00:34]} Re7 {[%emt 0:00:53]} 39. Bxf6+ {[%emt 0:01:23]} Kh7 {[%emt 0:00:10]} 40. Rxf4 {[%emt 0:00:00]} Rxe6 {[%emt 0:00:00]} 41. dxe6 {[%emt 0:00:17]} 1-0

[Event "WYCC 2018 O14"]
[Site "Halkidiki"]
[Date "2018.10.23"]
[Round "5"]
[White "Dabarera, G W D M"]
[Black "Patrelakis, Evaggelos"]
[Result "1/2-1/2"]
[ECO "B22"]
[WhiteElo "1768"]
[BlackElo "2146"]
[Annotator "NA"]
[PlyCount "110"]
[EventDate "2018.10.20"]
[EventType "swiss"]
[EventCountry "GRE"]
[SourceTitle "playchess.com"]
[Source "ChessBase"]
[SourceQuality "1"]
[TimeControl "40/5400+30:1800+30"]

1. e4 {[%emt 0:00:00]} c5 {[%emt 0:00:00]} 2. c3 {[%emt 0:00:00]} d5 {[%emt 0:00:00]} 3. exd5 {[%emt 0:00:00]} Qxd5 {[%emt 0:00:00]} 4. d4 {[%emt 0:00:00]} Nf6 {[%emt 0:00:01]} 5. Nf3 {[%emt 0:00:00]} e6 {[%emt 0:00:10]} 6. Na3 {[%emt 0:03:14]} Be7 {[%emt 0:16:38]} 7. Nc2 {[%emt 0:15:20]} O-O {[%emt 0:02:56]} 8. Bd3 {[%emt 0:03:03]} Rd8 {[%emt 0:03:13]} 9. O-O {[%emt 0:02:21]} Nc6 {[%emt 0:01:41]} 10. Qe2 {[%emt 0:01:02]} cxd4 {[%emt 0:03:15]} 11. cxd4 {[%emt 0:01:24]} a6 {[%emt 0:13:27]} 12. Rd1 {[%emt 0:05:16]} Qh5 {[%emt 0:06:44]} 13. Ne5 {[%emt 0:22:36]} Qxe2 {[%emt 0:04:13]} 14. Bxe2 {[%emt 0:00:04]} Bd7 {[%emt 0:11:32]} 15. Bf3 {[%emt 0:02:32]} Rac8 {[%emt 0:02:39]} 16. Ne3 {[%emt 0:01:33]} Be8 {[%emt 0:02:07]} 17. Nxc6 {[%emt 0:01:54]} Bxc6 {[%emt 0:00:22]} 18. Bxc6 {[%emt 0:00:42]} Rxc6 {[%emt 0:00:02]} 19. b3 {[%emt 0:00:15]} Nd5 {[%emt 0:05:02]} 20. Nxd5 {[%emt 0:01:58]} Rxd5 {[%emt 0:00:16]} 21. Be3 {[%emt 0:00:10]} Ba3 {[%emt 0:04:49]} 22. Rd2 {[%emt 0:02:39]} h6 {[%emt 0:00:37]} 23. Rad1 {[%emt 0:01:00]} Rc7 {[%emt 0:02:15]} 24. g3 {[%emt 0:03:01]} Bb4 {[%emt 0:01:26]} 25. Rd3 {[%emt 0:01:41]} Rcd7 {[%emt 0:02:24]} 26. f4 {[%emt 0:09:33]} f6 {[%emt 0:00:34]} 27. Kf2 {[%emt 0:00:28]} Kf7 {[%emt 0:04:02]} 28. Ke2 {[%emt 0:02:29]} Rh5 {[%emt 0:01:37]} 29. h4 {[%emt 0:01:27]} Ra5 {[%emt 0:01:16]} 30. a4 {[%emt 0:00:22]} Rad5 {[%emt 0:01:43]} 31. g4 {[%emt 0:01:51]} h5 {[%emt 0:00:23]} 32. g5 {[%emt 0:00:24]} Rc7 {[%emt 0:01:51]} 33. Rc1 {[%emt 0:00:58]} Rxc1 {[%emt 0:00:43]} 34. Bxc1 {[%emt 0:00:02]} Kg6 {[%emt 0:00:17]} 35. Re3 {[%emt 0:07:46]} Kf5 {[%emt 0:00:41]} 36. Kd3 {[%emt 0:00:18]} Rd6 {[%emt 0:01:08]} 37. Re4 {[%emt 0:05:41]} Rc6 {[%emt 0:03:24]} 38. Bb2 {[%emt 0:00:09]} a5 {[%emt 0:00:07]} 39. Re2 {[%emt 0:01:25]} Kxf4 {[%emt 0:00:11]} 40. gxf6 {[%emt 0:00:00]} gxf6 {[%emt 0:00:00]} 41. Rf2+ {[%emt 0:00:14]} Kg3 {[%emt 0:02:53]} 42. Rxf6 {[%emt 0:00:11]} Kxh4 {[%emt 0:00:20]} 43. Rf7 {[%emt 0:01:51]} b6 {[%emt 0:00:57]} 44. Rg7 {[%emt 0:02:56]} Kh3 {[%emt 0:01:35]} 45. Rg1 {[%emt 0:00:49]} h4 {[%emt 0:01:08]} 46. Rg6 {[%emt 0:00:07]} Rd6 {[%emt 0:02:07]} 47. Ke4 {[%emt 0:00:20]} Be1 {[%emt 0:01:29]} 48. Bc1 {[%emt 0:18:14]} Bg3 {[%emt 0:07:34]} 49. Be3 {[%emt 0:00:21]} Kh2 {[%emt 0:07:38]} 50. Kf3 {[%emt 0:00:43]} Kh1 {[%emt 0:04:06]} 51. Rh6 {[%emt 0:01:07]} Kh2 {[%emt 0:02:01]} 52. Bf4 {[%emt 0:01:12]} Bxf4 {[%emt 0:02:16]} 53. Rxh4+ Kg1 54. Rxf4 Rc6 55. Ke4 Kg2 1/2-1/2